Workbook

Sheet INGRESO DE DATOS
O2: 24 years | P2: FALSE
O4: Descuento 24 años (por edad)
O5: age | P5: Discount (%) | Q5: Parameter | S5: Type | T5: Nuevo Negocio | V5: Región | W5: Argentina
O6: 24 | P6: 35 | Q6: =1-P6/100 -> 0.65 | T6: Renovación | W6: Belize
O7: 25 | P7: 30 | Q7: =1-P7/100 -> 0.7 | W7: El Caribe
O8: 26 | P8: 25 | Q8: 0.75 | W8: Chile
O9: 27 | P9: 20 | Q9: 0.8 | W9: Colombia
O10: 28 | P10: 15 | Q10: 0.85 | W10: Costa Rica
O11: 29 | P11: 6 | Q11: 0.94 | W11: El Salvador
O12: All ages | P12: 0 | Q12: 1 | W12: Guyana
S13: Type selected | T13: 2 | W13: Haití
W14: Honduras
W15: Nicaragua
W16: Paraguay
W17: Perú
W18: Surinam
O19: Descuento de 24 años: | P19: =IF(P2,_xlfn.SWITCH(C40,O6,Q6,O7,Q7,O8,Q8,O9,Q9,O10,Q10,O11,Q11,Q12),Q12) -> 1 | W19: Uruguay
W20: Venezuela
V21: Selección | W21: 6
V22: Región | W22: =IF(W21=1,"2",IF(W21=2,3,IF(W21=3,4,IF(W21=4,5,IF(W21=4,5,IF(W21=5,6,IF(W21=6,8,IF(W21=7,9,IF(W21=8,"Bolivia"))))))))) -> 8
O24: Descuento por variante de coaseguro | P24: N/A
O30: Descuento si es nuevo negocio (ENTRADA MANUAL)
O32: New business discount
O33: Critical | P33: Diamond | Q33: Complete | R33: Advantage | S33: Secure | T33: Essential
O34: 0 | P34: 0 | Q34: 0 | R34: 0 | S34: 0 | T34: 0
A36: Nombre del Asegurado principal: | C36: John Doe
O37: Descuento combinado 24 años + Nuevo Negocio o Roneovaciones
A38: Número de adultos en la póliza: | C38: 2 | E38: Número de hijos en la póliza: | G38: 4
A40: Edad del titular: | C40: 24 | E40: Edad de cónyuge: | G40: 55 | O40: New business discount
O41: Critical | P41: Diamond | Q41: Complete | R41: Advantage | S41: Secure | T41: Essential
O42: =1*$P$19 -> 1 | P42: =IF($T$13=1,IF($W$22="PERU2020", (1-O51)*$P$19,(1-P34)*$P$19),1*$P$19) -> 1 | Q42: =IF($T$13=1,IF($W$22="PERU2020", (1-O54)*$P$19,(1-Q34)*$P$19),1*$P$19) -> 1 | R42: =IF($T$13=1,IF($W$22="PERU2020", (1-O57)*$P$19,(1-R34)*$P$19),1*$P$19) -> 1 | S42: =IF($T$13=1,IF($W$22="PERU2020", (1-O60)*$P$19,(1-S34)*$P$19),1*$P$19) -> 1 | T42: =IF($T$13=1,IF($W$22="PERU2020", (1-O63)*$P$19,(1-T34)*$P$19),1*$P$19) -> 1
A44: Nombre de la Agencia : | C44: Agencia
A47: Tarifas en US$ | Validas: 1 de enero de 2024
O48: DISCOUNT PERU 2020
O50: EXCLUSIVE CARE
O51: 0.51
O53: PRIVILEGE CARE
O54: 0.51
O56: ADVANTAGE CARE
O57: 0.47
O59: SECURE CARE
O60: 0.54
O62: ESSENTIAL CARE
O63: 0.54

Sheet BUPA MAX
C1: FALSE | D1: FALSE | J1: RESUMEN DE BENEFICIOS | W1: RESUMEN DE BENEFICIOS
A5: Cotización de Seguro Médico Internacional Bupa Max Tarifas en US$ | Validas: 1 de enero de 2024 | F5: REGIÓN CONO SUR
F7: Argentina | Chile Paraguay | Uruguay
A13: Nombre del asegurado principal | B13: =+'INGRESO DE DATOS'!$C$36 -> John Doe
A15: Broker/Agente | B15: =+'INGRESO DE DATOS'!$C$44 -> Agencia
A17: Número de Adultos en la Póliza | B17: =+'INGRESO DE DATOS'!$C$38 -> 2 | D17: Dependientes (menores de 24 años) | G17: =+'INGRESO DE DATOS'!$G$38 -> 4
D18: =IF('INGRESO DE DATOS'!$P$2=TRUE, "Cotización para dependiente de 24 años","") -> 
A19: Edad del Titular | B19: =+'INGRESO DE DATOS'!$C$40 -> 24 | D19: Edad del Cónyuge | G19: =+'INGRESO DE DATOS'!$G$40 -> 55
D21: Fecha de Cotización: | F21: =NOW() -> 2023-12-27T15:52:44.550
A25: DEDUCIBLES | B25: PLAN 1 | C25: PLAN 2 | D25: PLAN 3 | E25: PLAN 4 | F25: PLAN 5 | G25: PLAN 6 | H25: PLAN 7
A26: Dentro o fuera del pais de residencia | B26: n/a | C26: 2500 | D26: 5000 | E26: 10000 | F26: 20000 | G26: 50000 | H26: 10000
A27: Fuera del pais de residencia | B27: n/a | C27: 2000 | D27: 3000 | E27: 5000 | F27: 10000 | G27: 20000
A30: TARIFAS ANUALES
A31: Prima de Titular | B31: n/a | C31: =VLOOKUP($B$19,Tablas!$A$440:$I$502,4,TRUE) -> 2196 | D31: =VLOOKUP($B$19,Tablas!$A$440:$I$502,5,TRUE) -> 1574 | E31: =VLOOKUP($B$19,Tablas!$A$440:$I$502,6,TRUE) -> 1276 | F31: =VLOOKUP($B$19,Tablas!$A$440:$I$502,7,TRUE) -> 995 | G31: =VLOOKUP($B$19,Tablas!$A$440:$I$502,8,TRUE) -> 699 | H31: =VLOOKUP($B$19,Tablas!$A$440:$I$463,9,TRUE) -> 0
A32: Prima de Cónyuge | B32: n/a | C32: =IF($B$17=1,0,(VLOOKUP($G$19,Tablas!$A$440:$I$502,4,TRUE))) -> 6863 | D32: =IF($B$17=1,0,(VLOOKUP($G$19,Tablas!$A$440:$I$502,5,TRUE))) -> 4911 | E32: =IF($B$17=1,0,(VLOOKUP($G$19,Tablas!$A$440:$I$502,6,TRUE))) -> 4176 | F32: =IF($B$17=1,0,(VLOOKUP($G$19,Tablas!$A$440:$I$502,7,TRUE))) -> 3172 | G32: =IF($B$17=1,0,(VLOOKUP($G$19,Tablas!$A$440:$I$502,8,TRUE))) -> 2224 | H32: =IF($B$17=1,0,(VLOOKUP($G$19,Tablas!$A$440:$I$463,9,TRUE))) -> 0
A33: Primas Hijos | B33: n/a | C33: =IF($G$17=0,0,(VLOOKUP($G$17,Tablas!$A$503:$I$505,4,TRUE))) -> 2368 | D33: =IF($G$17=0,0,(VLOOKUP($G$17,Tablas!$A$503:$I$505,5,TRUE))) -> 1732 | E33: =IF($G$17=0,0,(VLOOKUP($G$17,Tablas!$A$503:$I$505,6,TRUE))) -> 1421 | F33: =IF($G$17=0,0,(VLOOKUP($G$17,Tablas!$A$503:$I$505,7,TRUE))) -> 1162 | G33: =IF($G$17=0,0,(VLOOKUP($G$17,Tablas!$A$503:$I$505,8,TRUE))) -> 812 | H33: =IF($G$17=0,0,(VLOOKUP($G$17,Tablas!$A$464:$I$466,9,TRUE))) -> 
A34: Rider: Complicaciones de Maternidad | B34: n/a | C34: =+IF($C$1=FALSE,0,Tablas!D506) -> 0 | D34: =+IF($C$1=FALSE,0,Tablas!E506) -> 0 | E34: =+IF($C$1=FALSE,0,Tablas!F506) -> 0 | F34: =+IF($C$1=FALSE,0,Tablas!G506) -> 0 | G34: =+IF($C$1=FALSE,0,Tablas!H506) -> 0
A35: Rider: Trasplante Organos | B35: n/a | C35: =IF($D$1=FALSE,0,Tablas!D507) -> 0 | D35: =IF($D$1=FALSE,0,Tablas!E507) -> 0 | E35: =IF($D$1=FALSE,0,Tablas!F507) -> 0 | F35: =IF($D$1=FALSE,0,Tablas!G507) -> 0 | G35: =IF($D$1=FALSE,0,Tablas!H507) -> 0
A36: TOTAL PRIMA NETA | B36: n/a | C36: =SUM(C31:C35) -> 11427 | D36: =SUM(D31:D35) -> 8217 | E36: =SUM(E31:E35) -> 6873 | F36: =SUM(F31:F35) -> 5329 | G36: =SUM(G31:G35) -> 3735
A37: Costo Administrativo Annual | B37: n/a | C37: 75 | D37: 75 | E37: 75 | F37: 75 | G37: 75 | H37: 75
A38: GRAN TOTAL : | B38: n/a | C38: =SUM(C36:C37) -> 11502 | D38: 8292 | E38: 6948 | F38: 5404 | G38: 3810 | H38: 75
A41: TARIFAS SEMESTRALES
A42: Prima de Titular | B42: n/a | C42: =VLOOKUP($B$19,Tablas!$A$512:$I$574,4,TRUE) -> 1163.88 | D42: =VLOOKUP($B$19,Tablas!$A$512:$I$574,5,TRUE) -> 834.22 | E42: =VLOOKUP($B$19,Tablas!$A$512:$I$574,6,TRUE) -> 676.28 | F42: =VLOOKUP($B$19,Tablas!$A$512:$I$574,7,TRUE) -> 527.35 | G42: =VLOOKUP($B$19,Tablas!$A$512:$I$574,8,TRUE) -> 370.47 | H42: =VLOOKUP($B$19,Tablas!$A$512:$I$535,9,TRUE) -> 0
A43: Prima de Cónyuge | B43: n/a | C43: =IF($B$17=1,0,(VLOOKUP($G$19,Tablas!$A$512:$I$574,4,TRUE))) -> 3637.39 | D43: =IF($B$17=1,0,(VLOOKUP($G$19,Tablas!$A$512:$I$574,5,TRUE))) -> 2602.83 | E43: =IF($B$17=1,0,(VLOOKUP($G$19,Tablas!$A$512:$I$574,6,TRUE))) -> 2213.28 | F43: =IF($B$17=1,0,(VLOOKUP($G$19,Tablas!$A$512:$I$574,7,TRUE))) -> 1681.16 | G43: =IF($B$17=1,0,(VLOOKUP($G$19,Tablas!$A$512:$I$574,8,TRUE))) -> 1178.72 | H43: =IF($B$17=1,0,(VLOOKUP($G$19,Tablas!$A$512:$I$535,9,TRUE))) -> 0
A44: Primas Hijos | B44: n/a | C44: =IF($G$17=0,0,(VLOOKUP($G$17,Tablas!$A$575:$I$577,4,TRUE))) -> 1255.04 | D44: =IF($G$17=0,0,(VLOOKUP($G$17,Tablas!$A$575:$I$577,5,TRUE))) -> 917.96 | E44: =IF($G$17=0,0,(VLOOKUP($G$17,Tablas!$A$575:$I$577,6,TRUE))) -> 753.13 | F44: =IF($G$17=0,0,(VLOOKUP($G$17,Tablas!$A$575:$I$577,7,TRUE))) -> 615.86 | G44: =IF($G$17=0,0,(VLOOKUP($G$17,Tablas!$A$575:$I$577,8,TRUE))) -> 430.36 | H44: =IF($G$17=0,0,(VLOOKUP($G$17,Tablas!$A$536:$I$538,9,TRUE))) -> 
A45: Rider: Complicaciones de Maternidad | B45: n/a | C45: =+IF($C$1=FALSE,0,Tablas!D578) -> 0 | D45: =+IF($C$1=FALSE,0,Tablas!E578) -> 0 | E45: =+IF($C$1=FALSE,0,Tablas!F578) -> 0 | F45: =+IF($C$1=FALSE,0,Tablas!G578) -> 0 | G45: =+IF($C$1=FALSE,0,Tablas!H578) -> 0
A46: Rider: Trasplante Organos | B46: n/a | C46: =IF($D$1=FALSE,0,Tablas!D579) -> 0 | D46: =IF($D$1=FALSE,0,Tablas!E579) -> 0 | E46: =IF($D$1=FALSE,0,Tablas!F579) -> 0 | F46: =IF($D$1=FALSE,0,Tablas!G579) -> 0 | G46: =IF($D$1=FALSE,0,Tablas!H579) -> 0
A47: TOTAL PRIMA NETA | B47: n/a | C47: =SUM(C42:C46) -> 6056.31 | D47: 4355.01 | E47: 3642.69 | F47: 2824.37 | G47: 1979.55
A48: Costo Administrativo Anual | B48: n/a | C48: 75 | D48: 75 | E48: 75 | F48: 75 | G48: 75 | H48: 75
A49: GRAN TOTAL (1ra Cuota) | B49: n/a | C49: =SUM(C47:C48) -> 6131.31 | D49: 4430.01 | E49: 3717.69 | F49: 2899.37 | G49: 2054.55
A50: GRAN TOTAL (2da Cuota) | B50: n/a | C50: =C47 -> 6056.31 | D50: =D47 -> 4355.01 | E50: 3642.69 | F50: 2824.37 | G50: 1979.55
A52: Este presupuesto solamente tiene carácter informativo y en ningún momento expresa compromiso legal para suministrarle cobertura de seguro. La emisión de una póliza de seguro Bupa está sujeta a todas las evaluaciones de riesgo por parte de Bupa y a la recepción de todos los pagos de prima requeridos.

Sheet Advantage (LA) (hidden)
A10: Cotización de Seguro Médico Internacional - Bupa ADVANTAGE Care (cobertura solo Latinoamérica)
A12: Bupa Advantage Care (cobertura solo en Latinoamérica) | H12: =+'INGRESO DE DATOS'!$C$36 -> John Doe
A13: Cobertura Máxima anual | C13: US $ 3,500,000
A14: Cobertura Geografica | C14: Limitada a Latinoamérica excluyendo México | H14: =+'INGRESO DE DATOS'!$C$44 -> Agencia
A15: Condiciones médicas cubiertas | C15: Todas las condiciones médicas
A16: Redes de proveedores | C16: Red de Proveedores "Bupa Advantage" | J16: =+'INGRESO DE DATOS'!$C$38 -> 2 | M16: =+'INGRESO DE DATOS'!$C$40 -> 24
A17: Opciones fuera de la Red | C17: NO, solo en casos de emergencia | F17: FECHA DE COTIZACION :
A18: Requiere preautorización | C18: SI, 30% de penalización por omitir prenotificación | F18: =NOW() -> 2023-12-27T15:52:44.550 | J18: =+'INGRESO DE DATOS'!$G$38 -> 4 | M18: =+'INGRESO DE DATOS'!$G$40 -> 55
A20: Número máximo de días de hospitalización | C20: Ilimitado | I20: TRUE | K20: COMPLICACIONES DE MATERNIDAD
A21: Habitación y alimentación | C21: 100% dentro de Red Bupa
C22: "UCR" para L.A. en emergencias fuera de Red Bupa | I22: TRUE | K22: TRASPLANTE DE ORGANOS
A23: Cuidados Intensivos | C23: 100% dentro de Red Bupa
C24: "UCR" para L.A. en emergencias fuera de Red Bupa
A25: Cobertura de Maternidad | C25: $5,000 (Excepto planes 4,5, y 6) | F25: Deducibles | H25: PLAN 1 | I25: PLAN 2 | J25: PLAN 3 | K25: PLAN 4 | L25: PLAN 5 | M25: PLAN 6
A26: Cobertura Provisional de Recién Nacido | C26: $30,000 por los primeros 90 días | F26: Dentro del pais de residencia | H26: n/a | I26: 1000 | J26: 2000 | K26: 5000 | L26: 10000 | M26: 20000
A27: Cuidado del Recién Nacido saludable | C27: Ya incluída dentro del beneficio de Maternidad | F27: Fuera del pais de residencia | H27: n/a | I27: 2000 | J27: 3000 | K27: 5000 | L27: 10000 | M27: 20000
A28: Cobertura de Complicaciones de Maternidad | C28: Disponible a través de cobertura opcional adicional
A29: Trasplante de Organos | C29: $1,000,000 de por vida, por diagnóstico
A30: Condiciones congénitas y hereditarias | C30: <18 años $300,000 de por vida; >=18 al 100% | F30: Tarifas Anuales
A31: Coberturas opcionales (Riders) | C31: Complicaciones de Maternidad por $500,000 | F31: Prima de Titular : | H31: n/a | I31: =VLOOKUP($M$16,Tablas!#REF!,4,TRUE) ->  | J31: =VLOOKUP($M$16,Tablas!#REF!,5,TRUE) ->  | K31: =VLOOKUP($M$16,Tablas!#REF!,6,TRUE) ->  | L31: =VLOOKUP($M$16,Tablas!#REF!,7,TRUE) ->  | M31: =VLOOKUP($M$16,Tablas!#REF!,8,TRUE) -> 
C32: Trasplante de órganos por $ 300,000 adicionales | F32: Prima de Cónyuge | H32: n/a | I32: =IF($J$16=1,0,(VLOOKUP($M$18,Tablas!#REF!,4,TRUE))) ->  | J32: =IF($J$16=1,0,(VLOOKUP($M$18,Tablas!#REF!,5,TRUE))) ->  | K32: =IF($J$16=1,0,(VLOOKUP($M$18,Tablas!#REF!,6,TRUE))) ->  | L32: =IF($J$16=1,0,(VLOOKUP($M$18,Tablas!#REF!,7,TRUE))) ->  | M32: =IF($J$16=1,0,(VLOOKUP($M$18,Tablas!#REF!,8,TRUE))) -> 
A33: Acompañamiento de menores hospitalizados | C33: $300 por día | F33: Primas Hijos : | H33: n/a | I33: =IF($J$18=0,0,(VLOOKUP($J$18,Tablas!#REF!,4,TRUE))) ->  | J33: =IF($J$18=0,0,(VLOOKUP($J$18,Tablas!#REF!,5,TRUE))) ->  | K33: =IF($J$18=0,0,(VLOOKUP($J$18,Tablas!#REF!,6,TRUE))) ->  | L33: =IF($J$18=0,0,(VLOOKUP($J$18,Tablas!#REF!,7,TRUE))) ->  | M33: =IF($J$18=0,0,(VLOOKUP($J$18,Tablas!#REF!,8,TRUE))) -> 
A34: Ambulancia aérea | C34: $100,000 por año y ticket aéreo de retorno | F34: Prima Rider Complic. Maternidad | H34: n/a | I34: =+IF($I$20=FALSE,0,Tablas!#REF!) ->  | J34: =+IF($I$20=FALSE,0,Tablas!#REF!) ->  | K34: =+IF($I$20=FALSE,0,Tablas!#REF!) ->  | L34: =+IF($I$20=FALSE,0,Tablas!#REF!) ->  | M34: =+IF($I$20=FALSE,0,Tablas!#REF!) -> 
A35: Repatriación restos mortales | C35: 1 | F35: Prima Rider Trasplante Organos | H35: n/a | I35: =IF($I$22=FALSE,0,Tablas!#REF!) ->  | J35: =IF($I$22=FALSE,0,Tablas!#REF!) ->  | K35: =IF($I$22=FALSE,0,Tablas!#REF!) ->  | L35: =IF($I$22=FALSE,0,Tablas!#REF!) ->  | M35: =IF($I$22=FALSE,0,Tablas!#REF!) -> 
A36: Medicamentos por receta | C36: $6,000 por Asegurado, por año póliza | F36: TOTAL PRIMA NETA : | H36: n/a | I36: =SUM(I31:I35) -> 
A37: Almacenamiento de sangre de cordon umbilical | C37: $500 (Excepto planes 4,5, y 6) | F37: Costo Administrativo Anual : | H37: n/a | I37: 75 | J37: 75 | K37: 75 | L37: 75 | M37: 75
F38: GRAN TOTAL : | H38: n/a | I38: =SUM(I36:I37) ->  | J38: =SUM(J36:J37) ->  | K38: =SUM(K36:K37) ->  | L38: =SUM(L36:L37) ->  | M38: =SUM(M36:M37) -> 
A39: Atención médica en el hogar | C39: 100% de usual/acostumbrado y razonable
A40: Rehabilitación | C40: 100% de usual/acostumbrado y razonable | F40: Tarifas Semestrales
A41: Residencia y cuidados paliativos | C41: 100% de usual/acostumbrado y razonable | F41: Prima de Titular : | H41: n/a | I41: =VLOOKUP($M$16,Tablas!#REF!,4,TRUE) ->  | J41: =VLOOKUP($M$16,Tablas!#REF!,5,TRUE) ->  | K41: =VLOOKUP($M$16,Tablas!#REF!,6,TRUE) ->  | L41: =VLOOKUP($M$16,Tablas!#REF!,7,TRUE) ->  | M41: =VLOOKUP($M$16,Tablas!#REF!,8,TRUE) -> 
A42: Cobertura de actividades peligrosas | C42: 1 | F42: Prima de Cónyuge | H42: n/a | I42: =IF($J$16=1,0,(VLOOKUP($M$18,Tablas!#REF!,4,TRUE))) ->  | J42: =IF($J$16=1,0,(VLOOKUP($M$18,Tablas!#REF!,5,TRUE))) ->  | K42: =IF($J$16=1,0,(VLOOKUP($M$18,Tablas!#REF!,6,TRUE))) ->  | L42: =IF($J$16=1,0,(VLOOKUP($M$18,Tablas!#REF!,7,TRUE))) ->  | M42: =IF($J$16=1,0,(VLOOKUP($M$18,Tablas!#REF!,8,TRUE))) -> 
A43: Chequeos generales de rutina | C43: Hasta US$150 por año póliza.Sin deducible | F43: Primas Hijos : | H43: n/a | I43: =IF($J$18=0,0,(VLOOKUP($J$18,Tablas!#REF!,4,TRUE))) ->  | J43: =IF($J$18=0,0,(VLOOKUP($J$18,Tablas!#REF!,5,TRUE))) ->  | K43: =IF($J$18=0,0,(VLOOKUP($J$18,Tablas!#REF!,6,TRUE))) ->  | L43: =IF($J$18=0,0,(VLOOKUP($J$18,Tablas!#REF!,7,TRUE))) ->  | M43: =IF($J$18=0,0,(VLOOKUP($J$18,Tablas!#REF!,8,TRUE))) -> 
A44: Cobertura de VIH, SIDA, CAS | C44: Solo como efecto de transfusión de sangre | F44: Prima Rider Complic. Maternidad | H44: n/a | I44: =+IF($I$20=FALSE,0,Tablas!#REF!) ->  | J44: =+IF($I$20=FALSE,0,Tablas!#REF!) ->  | K44: =+IF($I$20=FALSE,0,Tablas!#REF!) ->  | L44: =+IF($I$20=FALSE,0,Tablas!#REF!) ->  | M44: =+IF($I$20=FALSE,0,Tablas!#REF!) -> 
A45: Cobertura de brazos y piernas artificiales | C45: $30,000 por año y hasta $120,000 de por vida | F45: Prima Rider Trasplante Organos | H45: n/a | I45: =IF($I$22=FALSE,0,Tablas!#REF!) ->  | J45: =IF($I$22=FALSE,0,Tablas!#REF!) ->  | K45: =IF($I$22=FALSE,0,Tablas!#REF!) ->  | L45: =IF($I$22=FALSE,0,Tablas!#REF!) ->  | M45: =IF($I$22=FALSE,0,Tablas!#REF!) -> 
A46: Cobertura extendida para dependientes en caso de muerte de asegurado principal | C46: 2 años sin costo | F46: TOTAL PRIMA NETA : | H46: n/a | I46: =SUM(I41:I45) -> 
F47: Costo Administrativo Anual : | H47: n/a | I47: 75 | J47: 75 | K47: 75 | L47: 75 | M47: 75
F48: GRAN TOTAL (1ra Cuota) : | H48: n/a | I48: =SUM(I46:I47) ->  | J48: =SUM(J46:J47) ->  | K48: =SUM(K46:K47) ->  | L48: =SUM(L46:L47) ->  | M48: =SUM(M46:M47) -> 
F49: GRAN TOTAL (2da Cuota) : | H49: n/a | I49: =I46 ->  | J49: =J46 -> 
F50: Tarifas en US $ - Válidas desde 01 Ene 2013

Sheet Comparacion de Beneficios (hidden)
A1: 2023 BUPA CARE COMPARACION DE BENEFICIOS

Sheet Tablas (hidden)
K1: Critical | L1: Diamond | M1: Complete | N1: Advantage | O1: Secure | P1: Essential
B2: REGIÓN | C2: ='INGRESO DE DATOS'!W22 -> 8 | E2: FACTOR SEMESTRAL : | G2: 0.53 | I2: TOTAL DISCOUNT | K2: ='INGRESO DE DATOS'!O42 -> 1 | L2: ='INGRESO DE DATOS'!P42 -> 1 | M2: ='INGRESO DE DATOS'!Q42 -> 1 | N2: ='INGRESO DE DATOS'!R42 -> 1 | O2: ='INGRESO DE DATOS'!S42 -> 1 | P2: ='INGRESO DE DATOS'!T42 -> 1 | T2: Impuesto (14.94%) | V2: =14.94/100+1 -> 1.1494
A5: BUPA DIAMOND CARE (MUNDIAL) | K5: ORIGINAL RATES | Q5: DISCOUNTS APPLIED
A6: TARIFAS ANUALES
A7: EDAD
C8: DW1 | D8: DW2 | E8: DW3 | F8: DW4 | G8: DW5 | H8: DW6
A9: 18 | B9: 18-24 | D9: =Q9*$V$2 ->  | E9: =R9*$V$2 ->  | K9: =Region!#REF! ->  | L9: =Region!#REF! ->  | M9: =Region!#REF! ->  | N9: =Region!#REF! ->  | O9: =Region!#REF! ->  | Q9: =(K9-50)*$L$2+50 ->  | R9: =(L9-50)*$L$2+50 -> 
A10: 25 | B10: 25-29 | D10: =Q10*$V$2 ->  | E10: =R10*$V$2 ->  | F10: =S10*$V$2 ->  | G10: =T10*$V$2 ->  | H10: =U10*$V$2 ->  | K10: =Region!#REF! ->  | L10: =Region!#REF! ->  | M10: =Region!#REF! ->  | N10: =Region!#REF! ->  | O10: =Region!#REF! ->  | Q10: =(K10-50)*$L$2+50 ->  | R10: =(L10-50)*$L$2+50 ->  | S10: =(M10-50)*$L$2+50 ->  | T10: =(N10-50)*$L$2+50 ->  | U10: =(O10-50)*$L$2+50 -> 
A11: 30 | B11: 30-34 | K11: =Region!#REF! ->  | L11: =Region!#REF! ->  | M11: =Region!#REF! ->  | N11: =Region!#REF! ->  | O11: =Region!#REF! -> 
A12: 35 | B12: 35-39 | K12: =Region!#REF! ->  | L12: =Region!#REF! ->  | M12: =Region!#REF! ->  | N12: =Region!#REF! ->  | O12: =Region!#REF! -> 
A13: 40 | B13: 40-44 | K13: =Region!#REF! ->  | L13: =Region!#REF! ->  | M13: =Region!#REF! ->  | N13: =Region!#REF! ->  | O13: =Region!#REF! -> 
A14: 45 | B14: 45-49 | K14: =Region!#REF! ->  | L14: =Region!#REF! ->  | M14: =Region!#REF! ->  | N14: =Region!#REF! ->  | O14: =Region!#REF! -> 
A15: 50 | B15: 50-54 | K15: =Region!#REF! ->  | L15: =Region!#REF! ->  | M15: =Region!#REF! ->  | N15: =Region!#REF! ->  | O15: =Region!#REF! -> 
A16: 55 | B16: 55-59 | K16: =Region!#REF! ->  | L16: =Region!#REF! ->  | M16: =Region!#REF! ->  | N16: =Region!#REF! ->  | O16: =Region!#REF! -> 
A17: 60 | B17: 60 | K17: =Region!#REF! ->  | L17: =Region!#REF! ->  | M17: =Region!#REF! ->  | N17: =Region!#REF! ->  | O17: =Region!#REF! -> 
A18: 61 | B18: 61 | K18: =Region!#REF! ->  | L18: =Region!#REF! ->  | M18: =Region!#REF! ->  | N18: =Region!#REF! ->  | O18: =Region!#REF! -> 
A19: 62 | B19: 62 | K19: =Region!#REF! ->  | L19: =Region!#REF! ->  | M19: =Region!#REF! ->  | N19: =Region!#REF! ->  | O19: =Region!#REF! -> 
A20: 63 | B20: 63 | K20: =Region!#REF! ->  | L20: =Region!#REF! ->  | M20: =Region!#REF! ->  | N20: =Region!#REF! ->  | O20: =Region!#REF! -> 
A21: 64 | B21: 64 | K21: =Region!#REF! ->  | L21: =Region!#REF! ->  | M21: =Region!#REF! ->  | N21: =Region!#REF! ->  | O21: =Region!#REF! -> 
A22: 65 | B22: 65 | K22: =Region!#REF! ->  | L22: =Region!#REF! ->  | M22: =Region!#REF! ->  | N22: =Region!#REF! ->  | O22: =Region!#REF! -> 
A23: 66 | B23: 66 | K23: =Region!#REF! ->  | L23: =Region!#REF! ->  | M23: =Region!#REF! ->  | N23: =Region!#REF! ->  | O23: =Region!#REF! -> 
A24: 67 | B24: 67 | K24: =Region!#REF! ->  | L24: =Region!#REF! ->  | M24: =Region!#REF! ->  | N24: =Region!#REF! ->  | O24: =Region!#REF! -> 
A25: 68 | B25: 68 | K25: =Region!#REF! ->  | L25: =Region!#REF! ->  | M25: =Region!#REF! ->  | N25: =Region!#REF! ->  | O25: =Region!#REF! -> 
A26: 69 | B26: 69 | K26: =Region!#REF! ->  | L26: =Region!#REF! ->  | M26: =Region!#REF! ->  | N26: =Region!#REF! ->  | O26: =Region!#REF! -> 
A27: 70 | B27: 70 | K27: =Region!#REF! ->  | L27: =Region!#REF! ->  | M27: =Region!#REF! ->  | N27: =Region!#REF! ->  | O27: =Region!#REF! -> 
A28: 71 | B28: 71 | K28: =Region!#REF! ->  | L28: =Region!#REF! ->  | M28: =Region!#REF! ->  | N28: =Region!#REF! ->  | O28: =Region!#REF! -> 
A29: 72 | B29: 72 | K29: =Region!#REF! ->  | L29: =Region!#REF! ->  | M29: =Region!#REF! ->  | N29: =Region!#REF! ->  | O29: =Region!#REF! -> 
A30: 73 | B30: 73 | K30: =Region!#REF! ->  | L30: =Region!#REF! ->  | M30: =Region!#REF! ->  | N30: =Region!#REF! ->  | O30: =Region!#REF! -> 
A31: 74 | B31: 74 | K31: =Region!#REF! ->  | L31: =Region!#REF! ->  | M31: =Region!#REF! ->  | N31: =Region!#REF! ->  | O31: =Region!#REF! -> 
A32: 75 | B32: 75+ | K32: =Region!#REF! ->  | L32: =Region!#REF! ->  | M32: =Region!#REF! ->  | N32: =Region!#REF! ->  | O32: =Region!#REF! -> 
A33: 1 | B33: 1 Child | D33: 1222.9616 | E33: 863.1994 | F33: 714.9268 | G33: 587.3434 | H33: 411.4852 | K33: =Region!D72 -> 1064 | L33: =Region!E72 -> 751 | M33: =Region!F72 -> 622 | N33: =Region!G72 -> 511 | O33: =Region!H72 -> 358 | Q33: =(K33)*$L$2 -> 1064 | R33: =(L33)*$L$2 -> 751 | S33: 622 | T33: 511 | U33: 358
A34: 2 | B34: 2 Children | D34: 1881.5678 | E34: 1367.786 | F34: 1126.412 | G34: 919.52 | H34: 645.9628 | K34: =Region!D73 -> 1637 | L34: =Region!E73 -> 1190 | M34: =Region!F73 -> 980 | N34: =Region!G73 -> 800 | O34: =Region!H73 -> 562 | Q34: =(K34)*$L$2 -> 1637 | R34: =(L34)*$L$2 -> 1190 | S34: =(M34)*$L$2 -> 980 | T34: =(N34)*$L$2 -> 800 | U34: =(O34)*$L$2 -> 562
A35: 3 | B35: 3+ Children | D35: =Q35*$V$2 -> 2721.7792 | E35: 1990.7608 | F35: 1633.2974 | G35: 1335.6028 | H35: 933.3128 | K35: =Region!D74 -> 2368 | L35: =Region!E74 -> 1732 | M35: =Region!F74 -> 1421 | N35: =Region!G74 -> 1162 | O35: =Region!H74 -> 812 | Q35: 2368 | R35: 1732 | S35: 1421 | T35: 1162 | U35: 812
A36: 1 | B36: Rider Comp. Maternidad | D36: =K36*$V$2 -> 0 | E36: =L36*$V$2 -> 0 | F36: 258.615 | G36: 258.615 | H36: 258.615 | K36: 0 | L36: 0 | M36: 225 | N36: 225 | O36: 225
A37: 1 | B37: Transplante de organos | D37: =K37*$V$2 -> 0 | E37: =L37*$V$2 -> 0 | F37: =M37*$V$2 -> 0 | G37: =N37*$V$2 -> 0 | H37: =O37*$V$2 -> 0 | K37: 0 | L37: 0 | M37: 0 | N37: 0 | O37: 0
D38: 0 | E38: 0 | F38: 0 | G38: 0 | H38: 0
A41: TARIFAS SEMESTRALES
A42: EDAD
D43: DW2 | E43: DW3 | F43: DW4 | G43: DW5 | H43: DW6
A44: 18 | B44: 18-24 | D44: =$G$2*D9 -> 
A45: 25 | B45: 25-29
A46: 30 | B46: 30-34
A47: 35 | B47: 35-39
A48: 40 | B48: 40-44
A49: 45 | B49: 45-49
A50: 50 | B50: 50-54
A51: 55 | B51: 55-59
A52: 60 | B52: 60
A53: 61 | B53: 61
A54: 62 | B54: 62 | D54: =$G$2*D19 -> 
A55: 63 | B55: 63
A56: 64 | B56: 64
A57: 65 | B57: 65
A58: 66 | B58: 66
A59: 67 | B59: 67
A60: 68 | B60: 68
A61: 69 | B61: 69
A62: 70 | B62: 70
A63: 71 | B63: 71
A64: 72 | B64: 72 | D64: =$G$2*D29 -> 
A65: 73 | B65: 73
A66: 74 | B66: 74
A67: 75 | B67: 75+
A68: 1 | B68: 1 Child | D68: 648.169648 | E68: 457.495682 | F68: 378.911204 | G68: 311.292002 | H68: 218.087156
A69: 2 | B69: 2 Children | D69: 997.230934 | E69: 724.92658 | F69: 596.99836 | G69: 487.3456 | H69: 342.360284
A70: 3 | B70: 3+ Children | D70: 1442.542976 | E70: 1055.103224 | F70: 865.647622 | G70: 707.869484 | H70: 494.655784
A71: 1 | B71: Rider Comp. Maternidad | D71: =+D36*$G$2 -> 0 | E71: 0 | F71: 137.06595 | G71: 137.06595 | H71: 137.06595
A72: 1 | B72: Transplante de organos | D72: 0 | E72: 0 | F72: 0 | G72: 0 | H72: 0
A78: BUPA DIAMOND CARE (LATIN AMERICA) | K78: ORIGINAL RATES | Q78: DISCOUNTS APPLIED
A79: TARIFAS ANUALES
A80: EDAD
C81: DW1 | D81: DW2 | E81: DW3 | F81: DW4 | G81: DW5 | H81: DW6
A82: 18 | B82: 18-24 | D82: =Q82*$V$2 ->  | E82: =R82*$V$2 ->  | K82: =Region!#REF! ->  | L82: =Region!#REF! ->  | M82: =Region!#REF! ->  | N82: =Region!#REF! ->  | O82: =Region!#REF! ->  | Q82: =(K82-50)*$L$2+50 ->  | R82: =(L82-50)*$L$2+50 ->  | S82: =(M82-50)*$L$2+50 ->  | T82: =(N82-50)*$L$2+50 ->  | U82: =(O82-50)*$L$2+50 -> 
A83: 25 | B83: 25-29 | D83: =Q83*$V$2 ->  | E83: =R83*$V$2 ->  | F83: =S83*$V$2 ->  | G83: =T83*$V$2 ->  | H83: =U83*$V$2 ->  | K83: =Region!#REF! ->  | L83: =Region!#REF! ->  | M83: =Region!#REF! ->  | N83: =Region!#REF! ->  | O83: =Region!#REF! ->  | Q83: =(K83-50)*$L$2+50 -> 
A84: 30 | B84: 30-34 | K84: =Region!#REF! ->  | L84: =Region!#REF! ->  | M84: =Region!#REF! ->  | N84: =Region!#REF! ->  | O84: =Region!#REF! -> 
A85: 35 | B85: 35-39 | K85: =Region!#REF! ->  | L85: =Region!#REF! ->  | M85: =Region!#REF! ->  | N85: =Region!#REF! ->  | O85: =Region!#REF! -> 
A86: 40 | B86: 40-44 | K86: =Region!#REF! ->  | L86: =Region!#REF! ->  | M86: =Region!#REF! ->  | N86: =Region!#REF! ->  | O86: =Region!#REF! -> 
A87: 45 | B87: 45-49 | K87: =Region!#REF! ->  | L87: =Region!#REF! ->  | M87: =Region!#REF! ->  | N87: =Region!#REF! ->  | O87: =Region!#REF! -> 
A88: 50 | B88: 50-54 | K88: =Region!#REF! ->  | L88: =Region!#REF! ->  | M88: =Region!#REF! ->  | N88: =Region!#REF! ->  | O88: =Region!#REF! -> 
A89: 55 | B89: 55-59 | K89: =Region!#REF! ->  | L89: =Region!#REF! ->  | M89: =Region!#REF! ->  | N89: =Region!#REF! ->  | O89: =Region!#REF! -> 
A90: 60 | B90: 60 | K90: =Region!#REF! ->  | L90: =Region!#REF! ->  | M90: =Region!#REF! ->  | N90: =Region!#REF! ->  | O90: =Region!#REF! -> 
A91: 61 | B91: 61 | K91: =Region!#REF! ->  | L91: =Region!#REF! ->  | M91: =Region!#REF! ->  | N91: =Region!#REF! ->  | O91: =Region!#REF! -> 
A92: 62 | B92: 62 | K92: =Region!#REF! ->  | L92: =Region!#REF! ->  | M92: =Region!#REF! ->  | N92: =Region!#REF! ->  | O92: =Region!#REF! -> 
A93: 63 | B93: 63 | K93: =Region!#REF! ->  | L93: =Region!#REF! ->  | M93: =Region!#REF! ->  | N93: =Region!#REF! ->  | O93: =Region!#REF! -> 
A94: 64 | B94: 64 | K94: =Region!#REF! ->  | L94: =Region!#REF! ->  | M94: =Region!#REF! ->  | N94: =Region!#REF! ->  | O94: =Region!#REF! -> 
A95: 65 | B95: 65 | K95: =Region!#REF! ->  | L95: =Region!#REF! ->  | M95: =Region!#REF! ->  | N95: =Region!#REF! ->  | O95: =Region!#REF! -> 
A96: 66 | B96: 66 | K96: =Region!#REF! ->  | L96: =Region!#REF! ->  | M96: =Region!#REF! ->  | N96: =Region!#REF! ->  | O96: =Region!#REF! -> 
A97: 67 | B97: 67 | K97: =Region!#REF! ->  | L97: =Region!#REF! ->  | M97: =Region!#REF! ->  | N97: =Region!#REF! ->  | O97: =Region!#REF! -> 
A98: 68 | B98: 68 | K98: =Region!#REF! ->  | L98: =Region!#REF! ->  | M98: =Region!#REF! ->  | N98: =Region!#REF! ->  | O98: =Region!#REF! -> 
A99: 69 | B99: 69 | K99: =Region!#REF! ->  | L99: =Region!#REF! ->  | M99: =Region!#REF! ->  | N99: =Region!#REF! ->  | O99: =Region!#REF! -> 
A100: 70 | B100: 70 | K100: =Region!#REF! ->  | L100: =Region!#REF! ->  | M100: =Region!#REF! ->  | N100: =Region!#REF! ->  | O100: =Region!#REF! -> 
A101: 71 | B101: 71 | K101: =Region!#REF! ->  | L101: =Region!#REF! ->  | M101: =Region!#REF! ->  | N101: =Region!#REF! ->  | O101: =Region!#REF! -> 
A102: 72 | B102: 72 | K102: =Region!#REF! ->  | L102: =Region!#REF! ->  | M102: =Region!#REF! ->  | N102: =Region!#REF! ->  | O102: =Region!#REF! -> 
A103: 73 | B103: 73 | K103: =Region!#REF! ->  | L103: =Region!#REF! ->  | M103: =Region!#REF! ->  | N103: =Region!#REF! ->  | O103: =Region!#REF! -> 
A104: 74 | B104: 74 | K104: =Region!#REF! ->  | L104: =Region!#REF! ->  | M104: =Region!#REF! ->  | N104: =Region!#REF! ->  | O104: =Region!#REF! -> 
A105: 75 | B105: 75+ | K105: =Region!#REF! ->  | L105: =Region!#REF! ->  | M105: =Region!#REF! ->  | N105: =Region!#REF! ->  | O105: =Region!#REF! -> 
A106: 1 | B106: 1 Child | K106: =Region!#REF! ->  | L106: =Region!#REF! ->  | M106: =Region!#REF! ->  | N106: =Region!#REF! ->  | O106: =Region!#REF! ->  | Q106: =(K106)*$L$2 ->  | R106: =(L106)*$L$2 ->  | S106: =(M106)*$L$2 ->  | T106: =(N106)*$L$2 ->  | U106: =(O106)*$L$2 -> 
A107: 2 | B107: 2 Children | K107: =Region!#REF! ->  | L107: =Region!#REF! ->  | M107: =Region!#REF! ->  | N107: =Region!#REF! ->  | O107: =Region!#REF! ->  | Q107: =(K107)*$L$2 -> 
A108: 3 | B108: 3+ Children | K108: =Region!#REF! ->  | L108: =Region!#REF! ->  | M108: =Region!#REF! ->  | N108: =Region!#REF! ->  | O108: =Region!#REF! -> 
A109: 1 | B109: Rider Comp. Maternidad | D109: =K109*$V$2 -> 0 | E109: =L109*$V$2 -> 0 | F109: 258.615 | G109: 258.615 | H109: 258.615 | K109: 0 | L109: 0 | M109: 225 | N109: 225 | O109: 225
A110: 1 | B110: Transplante de organos | D110: =K110*$V$2 -> 0 | E110: =L110*$V$2 -> 0 | F110: =M110*$V$2 -> 0 | G110: =N110*$V$2 -> 0 | H110: =O110*$V$2 -> 0 | K110: 0 | L110: 0 | M110: 0 | N110: 0 | O110: 0
D111: 0 | E111: 0 | F111: 0 | G111: 0 | H111: 0
A114: TARIFAS SEMESTRALES
A115: EDAD
D116: DW2 | E116: DW3 | F116: DW4 | G116: DW5 | H116: DW6
A117: 18 | B117: 18-24 | D117: =$G$2*D82 -> 
A118: 25 | B118: 25-29 | D118: =$G$2*D83 -> 
A119: 30 | B119: 30-34 | D119: =$G$2*D84 -> 
A120: 35 | B120: 35-39 | D120: =$G$2*D85 -> 
A121: 40 | B121: 40-44 | D121: =$G$2*D86 -> 
A122: 45 | B122: 45-49 | D122: =$G$2*D87 -> 
A123: 50 | B123: 50-54 | D123: =$G$2*D88 -> 
A124: 55 | B124: 55-59 | D124: =$G$2*D89 -> 
A125: 60 | B125: 60 | D125: =$G$2*D90 -> 
A126: 61 | B126: 61 | D126: =$G$2*D91 -> 
A127: 62 | B127: 62 | D127: =$G$2*D92 -> 
A128: 63 | B128: 63 | D128: =$G$2*D93 -> 
A129: 64 | B129: 64 | D129: =$G$2*D94 -> 
A130: 65 | B130: 65 | D130: =$G$2*D95 -> 
A131: 66 | B131: 66 | D131: =$G$2*D96 -> 
A132: 67 | B132: 67 | D132: =$G$2*D97 -> 
A133: 68 | B133: 68 | D133: =$G$2*D98 -> 
A134: 69 | B134: 69 | D134: =$G$2*D99 -> 
A135: 70 | B135: 70 | D135: =$G$2*D100 -> 
A136: 71 | B136: 71 | D136: =$G$2*D101 -> 
A137: 72 | B137: 72 | D137: =$G$2*D102 -> 
A138: 73 | B138: 73 | D138: =$G$2*D103 -> 
A139: 74 | B139: 74 | D139: =$G$2*D104 -> 
A140: 75 | B140: 75+ | D140: =$G$2*D105 -> 
A141: 1 | B141: 1 Child | D141: =$G$2*D106 -> 
A142: 2 | B142: 2 Children | D142: =$G$2*D107 -> 
A143: 3 | B143: 3+ Children | D143: =$G$2*D108 -> 
A144: 1 | B144: Rider Comp. Maternidad | D144: =+D109*$G$2 -> 0 | E144: 0 | F144: 137.06595 | G144: 137.06595 | H144: 137.06595
A145: 1 | B145: Transplante de organos | D145: =+D110*$G$2 -> 0 | E145: 0 | F145: 0 | G145: 0 | H145: 0
A151: DIAMOND (LATINAMERICA ONLY)
A152: TARIFAS ANUALES
A153: EDAD
C154: DL1 | D154: DL2 | E154: DL3 | F154: DL4 | G154: DL5 | H154: DL6
A155: 18 | B155: - 24
A156: 25 | B156: - 29
A157: 30 | B157: - 34
A158: 35 | B158: - 39
A159: 40 | B159: - 44
A160: 45 | B160: - 49
A161: 50 | B161: - 54
A162: 55 | B162: - 59
A163: 60
A164: 61
A165: 62
A166: 63
A167: 64
A168: 65
A169: 66
A170: 67
A171: 68
A172: 69
A173: 70
A174: 71
A175: 72
A176: 73
A177: 74
A178: 75 | B178: o más
A179: 1 | B179: Hijo
A180: 2 | B180: Hijos
A181: 3 | B181: Hijos o más
A182: 1 | B182: Rider Comp. Maternidad
A183: 1 | B183: Transplante de organos | C183: 0 | D183: 0 | E183: 0 | F183: 0 | G183: 0 | H183: 0
A185: TARIFAS SEMESTRALES
A186: EDAD
C187: DL1 | D187: DL2 | E187: DL3 | F187: DL4 | G187: DL5 | H187: DL6
A188: 18 | B188: - 24 | C188: =+C155*$G$2 -> 0 | D188: 0 | E188: 0 | F188: 0 | G188: 0 | H188: 0
A189: 25 | B189: - 29 | C189: 0 | D189: 0 | E189: 0 | F189: 0 | G189: 0 | H189: 0
A190: 30 | B190: - 34 | C190: 0 | D190: 0 | E190: 0 | F190: 0 | G190: 0 | H190: 0
A191: 35 | B191: - 39 | C191: 0 | D191: 0 | E191: 0 | F191: 0 | G191: 0 | H191: 0
A192: 40 | B192: - 44 | C192: 0 | D192: 0 | E192: 0 | F192: 0 | G192: 0 | H192: 0
A193: 45 | B193: - 49 | C193: 0 | D193: 0 | E193: 0 | F193: 0 | G193: 0 | H193: 0
A194: 50 | B194: - 54 | C194: 0 | D194: 0 | E194: 0 | F194: 0 | G194: 0 | H194: 0
A195: 55 | B195: - 59 | C195: 0 | D195: 0 | E195: 0 | F195: 0 | G195: 0 | H195: 0
A196: 60 | C196: 0 | D196: 0 | E196: 0 | F196: 0 | G196: 0 | H196: 0
A197: 61 | C197: 0 | D197: 0 | E197: 0 | F197: 0 | G197: 0 | H197: 0
A198: 62 | C198: =+C165*$G$2 -> 0 | D198: 0 | E198: 0 | F198: 0 | G198: 0 | H198: 0
A199: 63 | C199: 0 | D199: 0 | E199: 0 | F199: 0 | G199: 0 | H199: 0
A200: 64 | C200: 0 | D200: 0 | E200: 0 | F200: 0 | G200: 0 | H200: 0
A201: 65 | C201: 0 | D201: 0 | E201: 0 | F201: 0 | G201: 0 | H201: 0
A202: 66 | C202: 0 | D202: 0 | E202: 0 | F202: 0 | G202: 0 | H202: 0
A203: 67 | C203: 0 | D203: 0 | E203: 0 | F203: 0 | G203: 0 | H203: 0
A204: 68 | C204: 0 | D204: 0 | E204: 0 | F204: 0 | G204: 0 | H204: 0
A205: 69 | C205: 0 | D205: 0 | E205: 0 | F205: 0 | G205: 0 | H205: 0
A206: 70 | C206: 0 | D206: 0 | E206: 0 | F206: 0 | G206: 0 | H206: 0
A207: 71 | C207: 0 | D207: 0 | E207: 0 | F207: 0 | G207: 0 | H207: 0
A208: 72 | C208: =+C175*$G$2 -> 0 | D208: 0 | E208: 0 | F208: 0 | G208: 0 | H208: 0
A209: 73 | C209: 0 | D209: 0 | E209: 0 | F209: 0 | G209: 0 | H209: 0
A210: 74 | C210: 0 | D210: 0 | E210: 0 | F210: 0 | G210: 0 | H210: 0
A211: 75 | B211: o más | C211: 0 | D211: 0 | E211: 0 | F211: 0 | G211: 0 | H211: 0
A212: 1 | B212: Hijo | C212: 0 | D212: 0 | E212: 0 | F212: 0 | G212: 0 | H212: 0
A213: 2 | B213: Hijos | C213: 0 | D213: 0 | E213: 0 | F213: 0 | G213: 0 | H213: 0
A214: 3 | B214: Hijos o más | C214: 0 | D214: 0 | E214: 0 | F214: 0 | G214: 0 | H214: 0
A215: 1 | B215: Rider Comp. Maternidad | C215: 0 | D215: 0 | E215: 0 | F215: 0 | G215: 0 | H215: 0
A216: 1 | B216: Transplante de organos | C216: 0 | D216: 0 | E216: 0 | F216: 0 | G216: 0 | H216: 0
A221: BUPA COMPLETE CARE (MUNDIAL)
... 338 more rows

Sheet Region (hidden)
K1: D1 | L1: D2 | M1: D3 | N1: D4 | O1: D5 | P1: D6
B2: REGIÓN | C2: ='INGRESO DE DATOS'!W22 -> 8 | E2: FACTOR SEMESTRAL : | G2: 0.53 | I2: NEW BUSINESS DISCUOUNTS | K2: ='INGRESO DE DATOS'!O42 -> 1 | L2: ='INGRESO DE DATOS'!P42 -> 1 | M2: ='INGRESO DE DATOS'!Q42 -> 1 | N2: ='INGRESO DE DATOS'!R42 -> 1 | O2: ='INGRESO DE DATOS'!S42 -> 1 | P2: ='INGRESO DE DATOS'!T42 -> 1
A5: BUPA ALPHA
A6: TARIFAS ANUALES
A8: EDAD | C8: DW1 | D8: DW2 | E8: DW3 | F8: DW4 | G8: DW5 | H8: DW6 | I8: DW7
A9: 18 | B9: 18 | D9: 1817 | E9: 1311 | F9: 1058 | G9: 832 | H9: 583
A10: 19 | B10: 19 | D10: 1882 | E10: 1356 | F10: 1095 | G10: 855 | H10: 600
A11: 20 | B11: 20 | D11: 1937 | E11: 1397 | F11: 1131 | G11: 885 | H11: 621
A12: 21 | B12: 21 | D12: 2002 | E12: 1442 | F12: 1165 | G12: 909 | H12: 639
A13: 22 | B13: 22 | D13: 2065 | E13: 1487 | F13: 1203 | G13: 940 | H13: 660
A14: 23 | B14: 23 | D14: 2130 | E14: 1530 | F14: 1238 | G14: 969 | H14: 681
A15: 24 | B15: 24 | D15: 2196 | E15: 1574 | F15: 1276 | G15: 995 | H15: 699
A16: 25 | B16: 25 | D16: 2257 | E16: 1623 | F16: 1311 | G16: 1022 | H16: 718
A17: 26 | B17: 26 | D17: 2323 | E17: 1668 | F17: 1353 | G17: 1050 | H17: 737
A18: 27 | B18: 27 | D18: 2388 | E18: 1713 | F18: 1389 | G18: 1077 | H18: 754
A19: 28 | B19: 28 | D19: 2533 | E19: 1816 | F19: 1469 | G19: 1142 | H19: 800
A20: 29 | B20: 29 | D20: 2672 | E20: 1919 | F20: 1546 | G20: 1203 | H20: 842
A21: 30 | B21: 30 | D21: 2814 | E21: 2021 | F21: 1630 | G21: 1263 | H21: 886
A22: 31 | B22: 31 | D22: 2956 | E22: 2130 | F22: 1713 | G22: 1324 | H22: 928
A23: 32 | B23: 32 | D23: 3098 | E23: 2235 | F23: 1792 | G23: 1388 | H23: 973
A24: 33 | B24: 33 | D24: 3172 | E24: 2279 | F24: 1836 | G24: 1413 | H24: 988
A25: 34 | B25: 34 | D25: 3247 | E25: 2323 | F25: 1884 | G25: 1441 | H25: 1008
A26: 35 | B26: 35 | D26: 3319 | E26: 2368 | F26: 1927 | G26: 1463 | H26: 1029
A27: 36 | B27: 36 | D27: 3392 | E27: 2412 | F27: 1972 | G27: 1489 | H27: 1044
A28: 37 | B28: 37 | D28: 3470 | E28: 2456 | F28: 2016 | G28: 1515 | H28: 1058
A29: 38 | B29: 38 | D29: 3582 | E29: 2535 | F29: 2072 | G29: 1563 | H29: 1095
A30: 39 | B30: 39 | D30: 3695 | E30: 2610 | F30: 2130 | G30: 1608 | H30: 1126
A31: 40 | B31: 40 | D31: 3813 | E31: 2688 | F31: 2186 | G31: 1654 | H31: 1161
A32: 41 | B32: 41 | D32: 3924 | E32: 2767 | F32: 2246 | G32: 1703 | H32: 1190
A33: 42 | B33: 42 | D33: 4040 | E33: 2839 | F33: 2299 | G33: 1747 | H33: 1222
A34: 43 | B34: 43 | D34: 4195 | E34: 2945 | F34: 2384 | G34: 1814 | H34: 1268
A35: 44 | B35: 44 | D35: 4353 | E35: 3054 | F35: 2472 | G35: 1876 | H35: 1315
A36: 45 | B36: 45 | D36: 4516 | E36: 3160 | F36: 2556 | G36: 1938 | H36: 1359
A37: 46 | B37: 46 | D37: 4670 | E37: 3265 | F37: 2643 | G37: 2008 | H37: 1403
A38: 47 | B38: 47 | D38: 4829 | E38: 3369 | F38: 2729 | G38: 2072 | H38: 1452
A39: 48 | B39: 48 | D39: 5093 | E39: 3554 | F39: 2892 | G39: 2212 | H39: 1546
A40: 49 | B40: 49 | D40: 5357 | E40: 3736 | F40: 3056 | G40: 2351 | H40: 1648
A41: 50 | B41: 50 | D41: 5618 | E41: 3918 | F41: 3224 | G41: 2491 | H41: 1747
A42: 51 | B42: 51 | D42: 5882 | E42: 4101 | F42: 3387 | G42: 2630 | H42: 1842
A43: 52 | B43: 52 | D43: 6146 | E43: 4280 | F43: 3552 | G43: 2772 | H43: 1938
A44: 53 | B44: 53 | D44: 6386 | E44: 4493 | F44: 3760 | G44: 2905 | H44: 2039
A45: 54 | B45: 54 | D45: 6623 | E45: 4700 | F45: 3970 | G45: 3040 | H45: 2130
A46: 55 | B46: 55 | D46: 6863 | E46: 4911 | F46: 4176 | G46: 3172 | H46: 2224
A47: 56 | B47: 56 | D47: 7101 | E47: 5120 | F47: 4393 | G47: 3306 | H47: 2317
A48: 57 | B48: 57 | D48: 7347 | E48: 5328 | F48: 4603 | G48: 3437 | H48: 2408
A49: 58 | B49: 58 | D49: 7733 | E49: 5542 | F49: 4764 | G49: 3573 | H49: 2504
A50: 59 | B50: 59 | D50: 8116 | E50: 5749 | F50: 4931 | G50: 3703 | H50: 2597
A51: 60 | B51: 60 | D51: 8506 | E51: 5957 | F51: 5093 | G51: 3839 | H51: 2688
A52: 61 | B52: 61 | D52: 8827 | E52: 6175 | F52: 5315 | G52: 3989 | H52: 2790
A53: 62 | B53: 62 | D53: 9228 | E53: 6465 | F53: 5572 | G53: 4174 | H53: 2924
A54: 63 | B54: 63 | D54: 9703 | E54: 6792 | F54: 5859 | G54: 4391 | H54: 3074
A55: 64 | B55: 64 | D55: 10250 | E55: 7179 | F55: 6201 | G55: 4643 | H55: 3250
A56: 65 | B56: 65 | D56: 10716 | E56: 7690 | F56: 6639 | G56: 4956 | H56: 3472
A57: 66 | B57: 66 | D57: 11576 | E57: 8277 | F57: 7143 | G57: 5327 | H57: 3730
A58: 67 | B58: 67 | D58: 12509 | E58: 8944 | F58: 7717 | G58: 5758 | H58: 4027
A59: 68 | B59: 68 | D59: 13556 | E59: 9703 | F59: 8370 | G59: 6250 | H59: 4373
A60: 69 | B60: 69 | D60: 14806 | E60: 10599 | F60: 9142 | G60: 6822 | H60: 4775
A61: 70 | B61: 70 | D61: 15688 | E61: 11159 | F61: 9532 | G61: 7143 | H61: 4999
A62: 71 | B62: 71 | D62: 17275 | E62: 12286 | F62: 10595 | G62: 7868 | H62: 5512
A63: 72 | B63: 72 | D63: 19121 | E63: 13601 | F63: 11726 | G63: 8714 | H63: 6103
A64: 73 | B64: 73 | D64: 21221 | E64: 15099 | F64: 13008 | G64: 9678 | H64: 6773
A65: 74 | B65: 74 | D65: 23657 | E65: 16832 | F65: 14518 | G65: 10789 | H65: 7557
A66: 75 | B66: 75 | D66: 26622 | E66: 18887 | F66: 16218 | G66: 12098 | H66: 8464
A67: 76 | B67: 76 | D67: 29850 | E67: 21174 | F67: 18246 | G67: 13559 | H67: 9492
A68: 77 | B68: 77 | D68: 33530 | E68: 23781 | F68: 20509 | G68: 15234 | H68: 10665
A69: 78 | B69: 78 | D69: 37672 | E69: 26720 | F69: 23042 | G69: 17116 | H69: 11982
A70: 79 | B70: 79 | D70: 42325 | E70: 30023 | F70: 25892 | G70: 19228 | H70: 13462
A71: 80 | B71: 80 | D71: 47894 | E71: 33973 | F71: 29293 | G71: 21762 | H71: 15234
A72: 1 | B72: 1 Child | D72: 1064 | E72: 751 | F72: 622 | G72: 511 | H72: 358
A73: 2 | B73: 2 Children | D73: 1637 | E73: 1190 | F73: 980 | G73: 800 | H73: 562
A74: 3 | B74: 3+ Children | D74: 2368 | E74: 1732 | F74: 1421 | G74: 1162 | H74: 812
A75: 1 | B75: Rider Comp. Maternidad | D75: 225 | E75: 225 | F75: 225 | G75: 225 | H75: 225
A76: 1 | B76: Transplante de organos | D76: 300 | E76: 300 | F76: 300 | G76: 300 | H76: 300
